bitfinex-derivatives/quotes_ETHF0:USTF0_20241007
["timestamp","ask_amount","ask_price","bid_price","bid_amount"]
[1728317680814,3.2078,2465.6,2465.2,4.38]
[1728317681112,0.40563,2465.5,2465.3,0.40564]
[1728317681307,0.40564,2465.4,2465.2,0.40566]
[1728317681607,3.2078,2465.3,2464.8,45.18]
[1728317681810,3.2078,2465.3,2464.7,0.8954]
[1728317682109,3.2078,2465.3,2465.2,0.40566]
[1728317683008,3.2078,2465.3,2465.2,4.46166]
[1728317683202,3.2078,2465.6,2465.2,4.46166]
[1728317683407,3.2078,2465.6,2465.5,0.40561]
[1728317684913,3.2078,2465.9,2465.7,0.40557]
[1728317685113,3.61336,2465.9,2465.7,0.40557]
[1728317685319,3.2078,2465.9,2465.7,0.40557]
[1728317685513,0.40556,2465.8,2465.7,0.40557]
[1728317685716,0.40561,2465.5,2465.4,0.40562]
[1728317685912,3.2078,2465.9,2465.1,4.38]
[1728317686104,0.40557,2465.8,2465.7,0.40557]
[1728317686312,0.40557,2465.8,2465.7,0.40558]
[1728317686612,0.40557,2465.8,2465.3,1.01411]
[1728317686613,3.2078,2465.9,2465.6,0.40558]
[1728317686911,0.40556,2465.8,2465.6,0.40558]
[1728317687310,3.2078,2465.9,2465.6,0.40558]
[1728317687517,0.40558,2465.7,2465.6,0.40558]
[1728317687720,0.4056,2465.6,2465.5,0.40561]
[1728317688016,0.40559,2465.7,2465.6,0.40559]
[1728317688810,1.01393,2465.8,2465.5,0.4056]
[1728317689011,0.40559,2465.7,2465.6,0.40559]
[1728317689816,0.40558,2465.7,2465.6,0.40559]
[1728317690513,3.2078,2465.9,2465.7,0.40557]
[1728317690514,0.40557,2465.8,2465.7,0.40557]
[1728317690721,3.2078,2465.9,2465.8,0.40556]
[1728317690918,3.2078,2466.3,2466.2,0.4055]
[1728317691112,3.2078,2466.6,2466.5,0.40543]
[1728317691417,3.2078,2466.6,2466.2,0.4055]
[1728317691614,1.01363,2466.5,2465.8,4.3718]
[1728317691813,0.40549,2466.3,2466.2,0.40549]
[1728317692018,0.40552,2466.1,2466.0,0.40553]
[1728317692227,1.01378,2466.2,2465.7,0.4692]
[1728317692514,4.22163,2466.0,2465.2,2.02825]
[1728317692719,3.2078,2465.7,2465.2,42.82825]
[1728317693120,3.61339,2465.7,2465.5,0.4056]
[1728317693621,3.2078,2465.7,2465.6,0.4056]
[1728317695209,3.2078,2465.7,2465.6,4.4616]
[1728317695823,3.6896,2466.3,2465.6,4.4616]
[1728317696019,0.40554,2466.0,2465.9,0.40554]
[1728317696216,0.40551,2466.1,2465.8,0.40555]
[1728317696518,0.40554,2466.0,2465.9,0.40554]
[1728317697219,7.99480349,2466.0,2465.9,0.40555]
[1728317697415,3.93960349,2466.0,2465.9,0.40555]
[1728317698021,3.53406349,2466.0,2465.4,4.38]
[1728317698222,3.2078,2466.0,2465.5,1.01401]
[1728317698423,0.40557,2465.8,2465.4,1.01407]
[1728317699018,0.40557,2465.8,2465.6,0.40558]
[1728317699221,0.40557,2465.8,2465.4,1.01407]
[1728317699412,3.2078,2466.0,2465.5,1.01404]
[1728317699720,0.40555,2465.9,2465.8,0.40555]
[1728317700224,3.2078,2466.0,2465.8,0.40555]
[1728317700413,3.2078,2466.0,2465.4,1.01407]
[1728317700610,2.02816817,2466.3,2465.4,0.40562]
[1728317700611,0.40561,2465.5,2465.4,0.40562]
[1728317700812,0.40563,2465.5,2465.0,1.94494]
[1728317701013,0.4056,2465.6,2465.1,1.01419]
[1728317701228,0.40568,2465.1,2465.0,0.9307]
[1728317701526,1.01412,2465.4,2465.0,0.9307]
[1728317701527,3.2078,2465.4,2465.0,0.9307]
[1728317701719,5.07092,2465.3,2464.5,1.13334477]
[1728317701919,5.07092,2465.3,2464.9,0.4057]
[1728317701920,0.4057,2465.0,2464.9,0.4057]
[1728317702518,0.40581,2464.3,2463.7,9.63670779]
[1728317702819,3.2078,2464.7,2463.8,1.0209]
[1728317703022,3.2078,2464.7,2464.6,0.40576]
[1728317703324,0.40572,2464.9,2464.4,5.39446]
[1728317703624,0.40577,2464.6,2464.4,0.40579]
[1728317703816,4.11803,2464.8,2464.6,0.40574]
[1728317704018,0.40574,2464.7,2464.5,0.40577]
[1728317704428,4.11804,2464.8,2464.6,0.40576]
[1728317704623,0.40574,2464.7,2464.5,0.40577]
[1728317704830,0.40579,2464.5,2464.3,0.4058]
[1728317705219,0.4058,2464.4,2464.2,0.40582]
[1728317705524,3.2078,2464.4,2463.6,1.01481]
[1728317705724,0.40586,2464.1,2463.9,41.20587]
[1728317705925,0.40586,2464.1,2463.6,1.01481]
[1728317706129,0.40586,2464.1,2463.9,0.40588]
[1728317706530,0.40588,2463.9,2463.7,0.40589]
[1728317706732,3.2078,2464.1,2463.7,1.01478]
[1728317707035,0.496,2464.2,2464.1,0.40584]
[1728317707423,3.2078,2464.4,2463.8,1.01473]
[1728317707621,1.54636817,2464.6,2464.3,4.38]
[1728317707828,3.2078,2464.7,2464.6,0.40576]
[1728317708022,3.2078,2465.0,2464.9,0.40571]
[1728317708330,3.2078,2465.0,2464.6,0.40576]
[1728317708331,0.40574,2464.8,2464.6,0.40575]
[1728317708724,0.40574,2464.8,2464.7,0.40574]
[1728317708924,0.40574,2464.8,2464.6,0.40575]
[1728317709624,0.40574,2464.8,2464.7,0.40574]
[1728317709821,0.40572,2464.9,2464.7,0.40574]
[1728317710023,4.0568,2464.9,2464.7,0.40574]
[1728317710218,0.40575,2464.7,2464.6,0.40576]
[1728317710419,0.40575,2464.7,2464.3,0.40581]
[1728317710619,0.40583,2464.3,2464.1,0.40584]
[1728317710826,0.40586,2464.1,2463.9,0.40587]
[1728317711025,4.71989,2464.2,2463.8,0.40589]
[1728317711226,0.40587,2464.0,2463.8,0.40589]
[1728317711833,0.40587,2464.0,2463.9,0.40588]
[1728317712034,4.0584,2464.0,2463.4,4.70108]
[1728317712225,4.0584,2464.0,2463.8,0.40588]
[1728317712226,0.40586,2464.0,2463.8,0.40588]
[1728317712627,4.46426,2464.0,2463.9,0.40588]
[1728317712838,0.40586,2464.1,2463.9,0.40588]
[1728317713228,1.01463,2464.1,2463.7,0.40589]
[1728317713430,0.40587,2464.0,2463.5,0.40594]
[1728317713630,0.40587,2464.0,2463.9,0.40588]
[1728317713829,3.7053,2464.2,2464.1,0.40584]
[1728317714633,0.40585,2464.1,2464.0,0.40585]
[1728317714840,3.7053,2464.2,2463.7,1.01475]
[1728317715133,3.7053,2464.2,2463.6,1.01479]
[1728317715341,4.11113,2464.2,2464.1,0.40584]
[1728317715540,0.40586,2464.1,2464.0,0.40585]
[1728317715936,0.40589,2463.9,2463.8,0.40588]
[1728317716135,0.40587,2464.0,2463.9,0.40587]
[1728317716537,4.46427,2464.0,2463.9,0.40587]
[1728317717446,4.0584,2464.0,2463.9,0.40587]
[1728317717640,4.46427,2464.0,2463.6,1.01482]
[1728317717847,0.40587,2464.0,2463.9,0.40587]
[1728317718041,0.40585,2464.1,2464.0,0.40584]
[1728317718243,3.2078,2464.2,2464.1,0.40584]
[1728317718753,3.2078,2464.2,2464.1,4.46424]
[1728317719047,0.40577,2464.6,2464.1,4.46424]
[1728317719048,3.7052,2464.7,2464.6,0.40576]
[1728317719248,0.4725,2465.1,2464.4,4.91448]
[1728317719439,3.7079,2465.3,2465.2,0.40566]
[1728317719646,3.7079,2465.3,2465.1,0.40567]
[1728317719843,3.7079,2465.3,2464.8,40.8]
[1728317719844,0.40569,2465.1,2464.8,40.8]
[1728317720150,3.7079,2465.3,2464.8,40.8]
[1728317720455,0.40567,2465.2,2465.0,0.40569]
[1728317721051,3.7079,2465.3,2465.1,0.40567]
[1728317721351,3.2078,2465.3,2464.9,3.9]
[1728317721547,3.2078,2465.3,2465.2,0.40566]
[1728317721859,3.2078,2465.3,2465.2,4.30566]
[1728317722040,3.2078,2465.6,2465.5,0.4056]
[1728317722350,3.2078,2465.6,2465.5,4.3056]
[1728317722851,3.2078,2466.0,2465.5,3.9]
[1728317723048,3.2078,2466.0,2465.9,0.40554]
[1728317723655,0.5134,2466.3,2465.8,3.9]
[1728317723850,0.5134,2466.3,2466.2,0.4055]
[1728317724152,3.7137,2466.4,2465.8,3.9]
[1728317724345,3.7137,2466.4,2465.6,0.5112]
[1728317724346,3.2078,2466.4,2466.3,0.40548]
[1728317725145,3.2078,2466.4,2466.1,3.9]
[1728317725350,0.40556,2465.9,2465.7,0.40557]
[1728317726046,3.61334,2466.0,2465.8,0.40556]
[1728317726354,3.61334,2466.0,2465.3,1.01408]
[1728317726355,0.40555,2465.9,2465.7,0.40557]
[1728317726546,3.2078,2466.0,2465.9,0.40555]
[1728317726742,3.2078,2466.0,2465.5,3.9]
[1728317726743,0.40556,2465.9,2465.5,3.9]
[1728317727052,0.40559,2465.7,2465.5,0.4056]
[1728317727253,3.61339,2465.7,2465.5,0.40561]
[1728317727550,3.2078,2465.7,2465.6,0.4056]
[1728317727751,3.2078,2465.7,2465.2,3.9]
[1728317727952,3.61339,2465.7,2465.3,0.40565]
[1728317728252,3.2078,2465.7,2465.6,0.4056]
[1728317728549,3.2078,2465.7,2465.5,3.9]
[1728317728550,3.2078,2466.3,2466.2,0.4055]
[1728317728948,7.2622,2466.3,2465.8,3.9]
[1728317729146,3.61329,2466.3,2466.1,0.40551]
[1728317729345,3.61329,2466.3,2465.8,3.9]
[1728317729346,3.2078,2466.3,2465.8,3.9]
[1728317729546,3.2078,2466.3,2466.2,0.4055]
[1728317731654,3.2078,2466.3,2466.2,4.7855]
[1728317732049,3.2078,2466.3,2466.2,0.4055]
[1728317733354,3.2078,2466.3,2466.2,8.8399]
[1728317733549,1.0555,2466.9,2466.2,8.4344]
[1728317733753,3.2078,2467.0,2466.9,0.40538]
[1728317734455,0.40534,2467.2,2466.7,40.8]
[1728317734757,0.40534,2467.2,2467.0,0.40536]
[1728317734951,3.2078,2467.3,2466.7,40.8]
[1728317735150,3.2078,2467.3,2466.8,1.0135]
[1728317735346,3.2078,2467.3,2467.2,0.40533]
[1728317735948,7.2606,2467.3,2466.7,40.8]
[1728317736256,7.2606,2467.3,2466.8,0.40539]
[1728317736257,0.40537,2467.0,2466.8,0.40539]
[1728317736455,4.22111,2467.3,2466.7,40.8]
[1728317736655,3.2078,2467.3,2466.7,40.8]
[1728317736858,3.61313,2467.3,2467.1,0.40535]
[1728317737154,3.2078,2467.3,2466.7,40.8]
[1728317737355,3.2078,2467.3,2467.2,0.40533]
[1728317738556,3.2078,2467.3,2467.0,0.5501]
[1728317738756,3.2078,2467.3,2467.2,0.40533]
[1728317739552,3.2078,2467.3,2466.7,40.8]
[1728317739553,7.2606,2467.3,2466.7,40.8]
[1728317739754,3.2078,2467.0,2466.2,4.38]
[1728317739955,3.2078,2467.0,2466.6,0.40542]
[1728317739956,0.40541,2466.8,2466.6,0.40542]
[1728317740156,3.2078,2466.7,2466.5,0.40544]
[1728317740355,3.2078,2466.7,2466.1,1.55228]
[1728317740356,3.2078,2466.7,2466.1,0.5385]
[1728317740549,3.2078,2466.7,2466.6,0.40543]
[1728317741565,3.61322,2466.7,2466.6,0.40543]
[1728317741755,3.2078,2466.7,2466.6,0.40543]
[1728317743857,3.2078,2466.7,2466.5,0.40544]
[1728317744155,3.2078,2466.7,2466.2,5.39374]
[1728317744355,3.2078,2466.7,2466.6,0.40543]
[1728317744861,3.61322,2466.7,2466.6,0.40543]
[1728317745159,3.2078,2466.7,2466.6,0.40543]
[1728317746571,3.2078,2466.7,2466.6,5.02373]
[1728317748065,3.2078,2467.0,2466.9,0.40538]
[1728317748255,3.2078,2467.5,2466.9,4.38]
[1728317748451,0.4053,2467.4,2467.3,0.40532]
[1728317748857,0.4053,2467.4,2466.9,5.39346]
[1728317749063,0.4053,2467.4,2466.9,4.38]
[1728317749267,0.4053,2467.4,2467.3,0.4053]
[1728317749654,3.2078,2467.5,2467.0,1.01342]
[1728317749862,3.2078,2467.5,2467.4,0.4053]
[1728317750366,3.2078,2467.5,2467.4,45.2581]
[1728317751461,3.2078,2468.1,2467.4,51.2581]
[1728317751664,0.40521,2468.0,2467.9,0.40521]
[1728317752163,3.2078,2468.1,2467.6,5.39317]
[1728317752365,3.2078,2468.1,2468.0,0.4052]
[1728317752671,0.6188,2468.1,2468.0,0.4052]
[1728317752969,1.75036817,2469.4,2468.0,21.40898855]
[1728317752970,3.2078,2469.2,2468.0,21.40898855]
[1728317753160,3.2078,2469.2,2469.1,3.89]
[1728317753359,3.6128,2469.2,2468.9,3.89]
[1728317753564,0.4051,2468.7,2468.4,0.40514]
[1728317753869,0.4051,2468.7,2468.4,0.40513]
[1728317754175,3.2078,2468.9,2468.3,3.89]
[1728317754471,1.50501,2468.6,2468.2,0.40516]
[1728317754668,1.50501,2468.6,2468.3,0.40515]
[1728317754862,1.50501,2468.6,2468.2,0.40515]
[1728317755561,1.0999,2468.6,2468.0,3.89]
[1728317755769,0.40515,2468.4,2468.1,0.40518]
[1728317755963,4.3077,2468.6,2468.0,3.89]
[1728317756161,0.40516,2468.3,2468.0,0.4052]
[1728317756370,0.40514,2468.4,2468.1,0.40518]
[1728317756568,0.40516,2468.3,2468.0,0.40519]
[1728317756766,4.3077,2468.6,2467.7,3.89]
[1728317756962,0.40516,2468.3,2468.0,0.40519]
[1728317757162,0.40516,2468.3,2468.1,0.40518]
[1728317757768,5.32048,2468.6,2468.2,0.40517]
[1728317758073,0.40515,2468.3,2467.8,1.01308]
[1728317758368,0.40515,2468.4,2467.9,0.40522]
[1728317758571,0.40515,2468.4,2467.8,1.01308]
[1728317758572,0.40515,2468.4,2468.2,0.40516]
[1728317758877,4.45635,2468.4,2468.3,0.40515]
[1728317759066,0.40515,2468.4,2468.3,0.40515]
[1728317759266,0.40515,2468.3,2468.2,0.40516]
[1728317759571,0.40517,2468.2,2468.1,0.40518]
[1728317759869,1.01281,2468.5,2467.7,3.89]
[1728317760067,4.71281,2468.6,2468.5,0.40512]
[1728317760262,4.71281,2468.6,2468.1,1.01297]
[1728317760263,4.3077,2468.6,2468.1,1.01297]
[1728317760457,0.40513,2468.5,2468.4,0.40513]
[1728317760673,4.3077,2468.6,2468.5,0.40512]
[1728317761262,1.0999,2468.6,2468.5,0.40512]
[1728317761567,0.40512,2468.5,2468.4,0.40513]
[1728317761869,1.505,2468.6,2468.5,0.40512]
[1728317762074,1.0999,2468.6,2468.5,0.40512]
[1728317762570,3.2078,2469.0,2468.6,0.40509]
[1728317762571,0.40509,2468.7,2468.6,0.40509]
[1728317762771,0.5688,2468.9,2468.1,3.2078]
[1728317762968,0.5688,2468.9,2468.4,0.40513]
[1728317762969,0.40513,2468.5,2468.4,0.40513]
[1728317763269,4.0512,2468.5,2468.4,0.40513]
[1728317763971,0.5688,2468.9,2468.8,0.40507]
[1728317764174,4.6192,2468.9,2468.8,0.40507]
[1728317764573,5.02425,2468.9,2468.8,0.40507]
[1728317764876,4.6192,2468.9,2468.4,0.40513]
[1728317765077,0.97387,2468.9,2468.8,0.40507]
[1728317765581,0.5688,2468.9,2468.8,0.40507]
[1728317766080,3.7333,2469.0,2468.9,0.40505]
[1728317766468,3.2078,2469.0,2468.9,4.29505]
[1728317767475,3.2078,2469.0,2468.9,0.40505]
[1728317767674,7.66324,2469.0,2468.9,0.40505]
[1728317767871,7.2582,2469.0,2468.6,4.90275]
[1728317768074,0.40516,2468.3,2468.2,0.40516]
[1728317768379,0.40514,2468.4,2468.3,0.40514]
[1728317768582,4.0512,2468.4,2468.0,1.013]
[1728317768773,1.1006,2468.5,2468.4,0.40514]
[1728317769084,1.1006,2468.5,2468.1,0.40518]
[1728317769085,0.40518,2468.2,2468.1,0.40518]
[1728317769677,4.3084,2468.5,2467.9,1.01304]
[1728317769874,4.71353,2468.5,2468.4,0.40514]
[1728317770085,4.3084,2468.5,2468.4,0.40514]
[1728317770585,3.7593,2468.5,2468.4,0.40514]
[1728317770778,0.98616,2468.9,2468.8,0.40507]
[1728317770978,0.40509,2468.8,2468.7,0.40508]
[1728317771279,0.40512,2468.6,2468.5,0.40511]
[1728317771677,4.45632,2468.6,2468.5,0.40511]
[1728317771884,0.40517,2468.3,2468.2,0.40516]
[1728317772075,5.00132,2468.6,2467.9,4.90305]
[1728317772076,0.40518,2468.2,2468.1,0.40517]
[1728317772284,0.40521,2468.1,2468.0,0.40519]
[1728317772483,0.96411,2468.1,2468.0,0.40519]
[1728317772679,3.2078,2468.4,2467.9,3.89]
[1728317772888,0.545,2468.6,2468.5,0.40512]
[1728317773190,3.2078,2468.9,2468.8,0.40507]
[1728317773582,3.2078,2468.9,2468.8,4.29507]
[1728317774689,3.2078,2469.2,2469.1,0.40501]
[1728317775291,0.545,2469.3,2469.1,3.89]
[1728317775485,0.40498,2469.4,2469.3,0.40498]
[1728317775685,0.5589,2469.5,2469.1,3.89]
[1728317775686,0.96386,2469.5,2469.1,3.89]
[1728317775892,0.5589,2469.5,2469.4,4.29497]
[1728317777479,3.2078,2469.8,2469.4,3.89]
[1728317777790,3.2078,2469.8,2469.6,0.40494]
[1728317777988,0.40492,2469.7,2469.6,0.40494]
[1728317778186,3.2078,2469.8,2469.4,3.89]
[1728317778380,3.2078,2469.5,2469.1,40.8]
[1728317778583,1.56274,2469.4,2468.8,4.90266]
[1728317778887,3.2078,2469.5,2469.4,0.40497]
[1728317779089,3.2078,2469.8,2469.4,3.89]
[1728317779392,0.40497,2469.5,2469.4,0.40497]
[1728317779591,0.40498,2469.4,2469.3,0.40498]
[1728317779788,0.40496,2469.5,2469.4,0.40497]
[1728317779985,1.01231,2469.7,2469.2,4.29499]
[1728317779986,1.4173,2469.6,2469.2,4.29499]
[1728317780185,1.01231,2469.7,2469.2,3.89]
[1728317780186,0.40499,2469.3,2469.2,3.89]
[1728317780382,1.01242,2469.5,2469.1,0.40501]
[1728317780587,1.01242,2469.5,2468.9,3.89]
[1728317780588,3.2078,2469.5,2468.9,3.89]
[1728317780787,0.40497,2469.4,2469.3,0.40498]
[1728317780984,3.61277,2469.5,2469.3,0.40499]
[1728317781184,0.40497,2469.4,2469.3,0.40499]
[1728317781602,0.40503,2469.1,2469.0,0.40503]
[1728317781802,0.40505,2469.0,2468.9,0.40505]
[1728317782007,1.01252,2469.2,2468.6,3.89]
[1728317782205,1.01252,2469.2,2468.8,0.40506]
[1728317782206,0.40506,2468.9,2468.8,0.40506]
[1728317782402,3.2078,2469.2,2468.6,3.89]
[1728317782603,0.40503,2469.1,2469.0,0.40503]
[1728317782803,3.2078,2469.2,2468.9,3.89]
[1728317783211,0.40502,2469.1,2468.9,4.29504]
[1728317783414,0.40502,2469.1,2469.0,0.40504]
[1728317783614,3.2078,2469.2,2469.1,0.40502]
[1728317785304,1.56459,2469.8,2469.2,0.405]
[1728317785305,3.61274,2469.6,2469.2,0.405]
[1728317785605,3.2078,2469.6,2469.3,3.89]
[1728317785810,0.40497,2469.5,2469.3,4.29497]
[1728317786010,3.2078,2469.6,2469.3,3.89]
[1728317786210,0.40497,2469.4,2469.3,4.29498]
[1728317786408,0.40497,2469.5,2469.4,0.40497]
[1728317786614,3.2078,2469.6,2469.3,3.89]
[1728317787113,3.2078,2469.6,2469.3,4.29498]
[1728317787312,3.2078,2469.6,2469.3,3.89]
[1728317787511,0.40496,2469.5,2469.0,3.89]
[1728317787713,0.40499,2469.4,2469.1,0.40502]
[1728317787906,0.40499,2469.4,2469.3,0.40499]
[1728317788412,3.7719,2469.6,2469.2,3.89]
[1728317788605,0.40496,2469.5,2469.4,0.40496]
[1728317789307,0.40497,2469.5,2469.4,0.40497]
[1728317790410,3.2078,2469.6,2469.2,3.89]
[1728317790915,0.40502,2469.2,2469.1,0.40501]
[1728317792013,1.01247,2469.4,2469.0,3.89]
[1728317792213,0.40502,2469.2,2469.0,3.89]
[1728317792517,1.01248,2469.3,2469.0,3.89]
[1728317792815,0.40502,2469.2,2469.1,0.40502]
[1728317793513,1.01248,2469.3,2468.8,0.572]
[1728317793715,1.01248,2469.3,2468.9,0.40505]
[1728317793716,0.40504,2469.0,2468.9,0.40505]
[1728317794511,0.5424,2469.1,2469.0,0.40504]
[1728317795518,3.2078,2469.3,2469.2,0.405]
[1728317796214,3.61279,2469.3,2469.2,0.405]
[1728317796405,3.53378725,2469.3,2469.2,0.405]
[1728317796726,3.2078,2469.6,2469.5,0.40496]
[1728317797017,3.2078,2469.6,2469.5,4.29496]
[1728317797209,2.08976995,2470.0,2469.9,0.40489]
[1728317797512,1.27002513,2470.0,2469.9,0.40489]
[1728317797716,1.27002513,2470.0,2469.7,1.0123]
[1728317797717,0.40489,2469.9,2469.8,0.40489]
[1728317797913,0.5391,2470.0,2469.5,3.89]
[1728317798114,0.5391,2470.0,2469.9,0.40489]
[1728317798317,5.27440303,2470.3,2469.9,4.29489]
[1728317798318,1.55066995,2470.2,2469.9,4.29489]
[1728317798616,0.40485,2470.2,2470.1,0.40485]
[1728317798808,0.32606991,2470.2,2470.1,0.40485]
[1728317799004,0.32606991,2470.2,2470.1,4.29485]
[1728317799206,3.2078,2470.3,2470.1,4.29485]
[1728317799207,1.55066995,2470.4,2470.1,3.89]
[1728317799412,0.32592045,2470.3,2470.2,0.40484]
[1728317799616,1.55066995,2470.6,2470.1,4.90211]
[1728317799913,3.2078,2470.7,2470.6,0.40478]
[1728317800310,0.5244,2471.0,2470.9,0.40473]
[1728317800611,3.2078,2471.2,2470.6,3.89]
[1728317800817,2.11806995,2471.3,2470.3,3.89]
[1728317800818,3.2078,2470.9,2470.3,3.89]
[1728317801020,0.40479,2470.6,2470.4,0.4048]
[1728317801225,0.40479,2470.5,2470.3,0.40481]
[1728317801522,0.40479,2470.6,2470.4,0.40481]
[1728317801716,1.56626,2470.8,2470.4,0.40479]
[1728317801915,0.40477,2470.7,2470.5,0.40479]
[1728317802416,0.40476,2470.7,2470.5,0.40479]
[1728317802615,0.40476,2470.7,2470.4,0.40481]
[1728317802814,0.40476,2470.7,2470.3,3.89]
[1728317803119,0.40476,2470.7,2470.6,0.40477]
[1728317804211,0.5544,2470.8,2470.3,3.89]
[1728317804407,0.40477,2470.7,2470.6,0.40477]
[1728317804915,0.5544,2470.8,2470.3,3.89]
[1728317804916,0.5544,2470.8,2470.3,4.90205]
[1728317805220,0.95915,2470.8,2470.7,0.40476]
[1728317805607,5.00635,2470.8,2470.7,0.40476]
[1728317805913,4.6016,2470.8,2470.3,3.89]
[1728317806116,0.40476,2470.7,2470.6,0.40476]
[1728317806803,0.40478,2470.6,2470.3,3.89]
[1728317807010,3.2078,2470.6,2470.0,3.89]
[1728317807218,0.40485,2470.2,2470.1,0.40485]
[1728317807411,1.01203,2470.4,2469.6,4.4426]
[1728317807412,3.2078,2470.3,2469.6,4.4426]
[1728317807717,0.40487,2470.1,2470.0,0.40486]
[1728317808014,0.94625,2470.2,2470.1,0.40486]
[1728317808213,3.2078,2470.3,2470.2,0.40484]
[1728317808521,0.5259,2470.5,2470.4,0.40481]
[1728317809913,0.5259,2470.5,2470.2,3.89]
[1728317809914,4.15537,2470.7,2470.2,3.89]
[1728317810117,4.15537,2470.7,2470.6,0.40478]
[1728317810319,3.2078,2470.7,2470.6,0.40478]
[1728317810511,3.61256,2470.7,2470.6,0.40478]
[1728317810914,3.2078,2470.7,2470.6,0.40478]
[1728317811614,3.61256,2470.7,2470.6,0.40478]
[1728317811812,3.2078,2470.7,2470.6,0.40478]
[1728317813123,5.33316995,2471.3,2470.6,10.0472]
[1728317813309,3.61247,2471.3,2471.2,0.40468]
[1728317813512,3.61246,2471.3,2471.2,0.40468]
[1728317813817,3.2078,2471.3,2470.9,40.8]
[1728317814022,0.40468,2471.2,2471.1,0.40468]
[1728317814219,3.2078,2471.3,2470.9,40.8]
[1728317814424,3.61247,2471.3,2471.2,0.40468]
[1728317814718,0.40469,2471.2,2471.1,0.40468]
[1728317814922,3.2078,2471.3,2470.9,41.81181]
[1728317815220,3.61246,2471.3,2471.2,0.40468]
[1728317815714,0.40469,2471.2,2471.1,0.40468]
[1728317816817,0.40469,2471.2,2470.9,40.8]
[1728317816818,3.2078,2471.3,2470.9,40.8]
[1728317817017,0.4047,2471.1,2471.0,0.40469]
[1728317817914,3.2078,2471.3,2470.6,3.89]
[1728317818115,0.40477,2470.7,2470.6,0.40476]
[1728317819012,1.01199,2470.5,2470.2,0.40482]
[1728317819212,1.01199,2470.5,2470.3,0.40482]
[1728317819213,0.40483,2470.4,2470.3,0.40482]
[1728317819430,0.40486,2470.2,2470.1,0.40485]
[1728317820121,0.96703,2470.3,2470.2,0.40484]
[1728317820318,0.40485,2470.2,2470.1,0.40485]
[1728317820518,0.40486,2470.1,2470.0,3.89]
[1728317820712,1.57428,2470.3,2469.9,0.40489]
[1728317821022,0.5622,2470.3,2469.7,5.44869]
[1728317821322,0.5622,2470.3,2470.2,0.40484]
[1728317821624,0.40485,2470.2,2470.1,0.40485]
[1728317821820,0.96703,2470.3,2470.2,0.40484]
[1728317822218,0.5622,2470.3,2470.2,0.40484]
[1728317822717,1.55066995,2470.8,2470.7,0.40476]
[1728317822922,2.56236995,2471.2,2470.7,3.89]
[1728317823122,4.75846995,2471.2,2470.7,3.89]
[1728317823319,0.40473,2470.9,2470.8,0.40473]
[1728317823534,0.40472,2471.0,2470.9,0.40471]
[1728317824418,0.4047,2471.1,2471.0,0.4047]
[1728317824727,0.40472,2471.0,2470.9,0.40472]
[1728317825513,3.2078,2471.2,2470.7,3.89]
[1728317825716,3.2078,2471.2,2471.1,0.40469]
[1728317826315,3.2078,2471.2,2471.1,4.45109]
[1728317826917,1.95523995,2471.9,2471.6,0.40461]
[1728317827120,0.40456,2471.9,2471.8,3.89]
[1728317827319,0.40455,2472.0,2471.8,3.89]
[1728317827623,1.01137,2472.0,2471.4,3.2078]
[1728317827824,0.40466,2471.4,2471.2,0.40467]
[1728317828127,3.2078,2471.7,2470.8,3.2078]
[1728317828428,1.0117,2471.2,2470.4,4.4171]
[1728317828725,1.01174,2471.1,2470.6,3.2078]
[1728317828927,1.01174,2471.1,2470.7,3.89]
[1728317829114,0.40472,2471.0,2470.9,0.40473]
[1728317829318,1.0904,2471.3,2470.9,4.0472]
[1728317829527,0.40469,2471.1,2471.0,3.89]
[1728317829921,0.40469,2471.1,2471.0,4.29471]
[1728317830226,1.56078,2471.3,2471.1,0.40469]
[1728317830227,0.40469,2471.2,2471.1,0.40469]
[1728317830723,0.5491,2471.3,2471.0,3.89]
[1728317830928,0.40469,2471.1,2471.0,4.2947]
[1728317831128,0.95377,2471.3,2471.2,0.40468]
[1728317831325,0.5491,2471.3,2471.2,0.40468]
[1728317831523,0.95376,2471.3,2471.2,0.40468]
[1728317832133,0.40468,2471.2,2471.1,0.40468]
[1728317832427,0.5491,2471.3,2471.0,3.89]
[1728317832625,0.95376,2471.3,2471.2,0.40468]
[1728317833424,0.5352,2471.6,2471.5,0.40463]
[1728317833624,3.2078,2471.7,2471.4,3.89]
[1728317833833,0.40463,2471.5,2471.4,4.29463]
[1728317834229,0.40464,2471.4,2471.3,0.40465]
[1728317834530,2.58444991,2472.2,2471.2,44.69]
[1728317834531,3.2078,2472.0,2471.2,44.69]
[1728317834734,0.5321,2471.7,2471.2,45.70168]
[1728317835043,0.5321,2471.7,2471.2,44.69]
[1728317835336,0.40468,2471.2,2471.1,0.40468]
[1728317835530,0.40467,2471.3,2471.1,0.40468]
[1728317835728,0.93346,2471.4,2471.2,0.40467]
[1728317836127,0.93346,2471.4,2470.9,4.90181]
[1728317836128,0.5288,2471.4,2470.9,4.90181]
[1728317836632,0.93346,2471.4,2471.3,0.40466]
[1728317837033,0.5288,2471.4,2470.9,4.90181]
[1728317837230,0.93345,2471.4,2471.3,0.40466]
[1728317837627,0.5288,2471.4,2471.3,0.40466]